[Event "SUNWAY"]
[Date "2016.12.16"]
[Round "1.11"]
[White "Pranav Anand"]
[Black "Vorobiov, Evgeny E."]
[Result "0-1"]
[WhiteElo "2230"]
[BlackElo "2583"]
[ECO "B30"]
[WhiteFed "IND"]
[BlackFed "RUS"]
[FCGameId "1201938146"]
[TimeControl "5400+30"]

1. e4 {[%clk 1:30:54]} c5 {[%clk 1:30:55]} 2. Nf3 {[%clk 1:31:19]} Nc6  {[%clk 1:31:18]} 3. Bb5 {[%clk 1:31:42]} e6 {[%clk 1:31:41]} 4. Bxc6  {[%clk 1:31:39]} bxc6 {[%clk 1:32:06]} 5. d3 {[%clk 1:32:00]} Ne7  {[%clk 1:32:15]} 6. O-O {[%clk 1:32:05]} Ng6 {[%clk 1:32:20]} 7. e5  {[%clk 1:30:55]} f6 {[%clk 1:30:13]} 8. exf6 gxf6 {[%clk 1:22:09]} 9. Re1  {[%clk 1:27:11]} Kf7 {[%clk 1:20:04]} 10. b3 {[%clk 1:26:33]} d5  {[%clk 1:18:18]} 11. Bb2 {[%clk 1:26:12]} Rg8 {[%clk 1:17:11]} 12. Nbd2  {[%clk 1:07:25]} Bd6 {[%clk 1:10:54]} 13. Nf1 {[%clk 1:04:33]} e5  {[%clk 1:09:52]} 14. Ng3 {[%clk 1:03:31]} Nf4 {[%clk 0:59:01]} 15. Bc1  {[%clk 0:59:44]} Qd7 {[%clk 0:47:16]} 16. Nh4 {[%clk 0:56:35]} Qg4  {[%clk 0:43:14]} 17. Qxg4 {[%clk 0:52:46]} Rxg4 {[%clk 0:43:21]} 18. Nf3  {[%clk 0:38:43]} Bd7 {[%clk 0:42:06]} 19. h3 {[%clk 0:38:12]} Rgg8  {[%clk 0:42:17]} 20. Nh4 {[%clk 0:36:36]} Bf8 {[%clk 0:41:09]} 21. Be3  {[%clk 0:26:49]} a5 {[%clk 0:39:09]} 22. Kh1 {[%clk 0:25:04]} Ne6  {[%clk 0:37:15]} 23. Ngf5 {[%clk 0:22:42]} Nd4 {[%clk 0:36:39]} 24. Bxd4  {[%clk 0:22:41]} cxd4 {[%clk 0:36:32]} 25. f4 {[%clk 0:22:33]} Re8  {[%clk 0:27:48]} 26. fxe5 {[%clk 0:21:50]} Rxe5 {[%clk 0:27:34]} 27. Nxd4  {[%clk 0:19:47]} Rh5 {[%clk 0:26:49]} 28. Ndf3 {[%clk 0:13:04]} Bd6  {[%clk 0:23:00]} 29. g4 {[%clk 0:13:05]} Bxg4 {[%clk 0:21:48]} 30. hxg4  {[%clk 0:13:03]} Rxg4 {[%clk 0:22:14]} 31. Rg1 {[%clk 0:13:09]} Bg3  {[%clk 0:18:53]} 32. Rad1 {[%clk 0:12:52]} Rg6 {[%clk 0:18:30]} 33. Rd2  {[%clk 0:11:05]} Bxh4 {[%clk 0:18:28]} 34. Rh2 {[%clk 0:11:22]} Rgh6  {[%clk 0:18:39]} 35. Rg4 {[%clk 0:11:20]} Bf2 {[%clk 0:17:44]} 36. Rxh5  {[%clk 0:10:37]} Rxh5+ {[%clk 0:18:09]} 37. Kg2 {[%clk 0:10:55]} Bb6  {[%clk 0:18:07]} 38. b4 {[%clk 0:09:10]} f5 {[%clk 0:13:28]} 39. Rg5  {[%clk 0:07:51]} Rxg5+ {[%clk 0:12:36]} 40. Nxg5+ {[%clk 0:38:20]} Kf6  {[%clk 0:36:45]} 41. bxa5 Bxa5 {[%clk 0:36:00]} 42. Nxh7+ {[%clk 0:32:54]} Ke5  {[%clk 0:36:14]} 43. Kf3 {[%clk 0:32:42]} Kd4 {[%clk 0:35:23]} 44. Ke2  {[%clk 0:32:22]} Kc3 {[%clk 0:35:01]} 45. Kd1 {[%clk 0:32:44]} Kb2  {[%clk 0:33:28]} 46. Ng5 {[%clk 0:29:41]} Kxa2 {[%clk 0:33:41]} 47. Ne6  {[%clk 0:28:50]} Bb6 {[%clk 0:33:48]} 48. d4 {[%clk 0:27:52]} Ka3  {[%clk 0:32:58]} 49. Kd2 {[%clk 0:28:12]} Kb4 {[%clk 0:31:49]} 50. Kd3  {[%clk 0:28:22]} Ba7 {[%clk 0:31:08]} 51. Nd8 {[%clk 0:26:39]} Kb5  {[%clk 0:31:27]} 52. Ne6 {[%clk 0:24:19]} Bb8 {[%clk 0:31:19]} 53. Nd8  {[%clk 0:24:04]} Bg3 {[%clk 0:30:01]} 54. Ne6 {[%clk 0:23:56]} f4  {[%clk 0:27:38]} 55. Ng5 {[%clk 0:24:17]} Bh4 {[%clk 0:27:54]} 56. Nf3  {[%clk 0:24:36]} Bf6 {[%clk 0:28:10]} 57. Nd2 {[%clk 0:24:55]} Kb6  {[%clk 0:27:41]} 58. c4 {[%clk 0:24:30]} Kc7 {[%clk 0:19:15]} 59. cxd5  {[%clk 0:24:40]} cxd5 {[%clk 0:19:42]} 60. Nb3 {[%clk 0:24:49]} Kd6  {[%clk 0:20:02]} 61. Na5 {[%clk 0:23:01]} Bg7 {[%clk 0:16:33]} 62. Nb7+  {[%clk 0:22:40]} Ke6 {[%clk 0:16:29]} 63. Na5 {[%clk 0:22:59]} Kf5  {[%clk 0:15:59]} 64. Nc6 {[%clk 0:23:18]} Bf8 {[%clk 0:13:37]} 65. Na7  {[%clk 0:19:58]} Kg4 {[%clk 0:11:29]} 66. Nb5 {[%clk 0:19:45]} f3  {[%clk 0:11:32]} 67. Nc3 {[%clk 0:19:57]} Bh6 {[%clk 0:11:16]} 68. Nxd5  {[%clk 0:20:13]} Kh3 {[%clk 0:11:39]} 0-1

[Event "SUNWAY"]
[Date "2016.12.16"]
[Round "1.12"]
[White "Peralta, Fernando"]
[Black "Larsen, Karsten"]
[Result "1/2-1/2"]
[WhiteElo "2574"]
[BlackElo "2227"]
[ECO "D35"]
[WhiteFed "ARG"]
[BlackFed "DEN"]
[FCGameId "1947609072"]
[TimeControl "5400+30"]

1. d4 {[%clk 1:30:55]} d5 {[%clk 1:30:39]} 2. c4 {[%clk 1:31:19]} e6  {[%clk 1:30:59]} 3. Nc3 {[%clk 1:31:39]} Nf6 {[%clk 1:31:13]} 4. cxd5  {[%clk 1:32:03]} exd5 {[%clk 1:31:37]} 5. Bg5 {[%clk 1:32:27]} Be7  {[%clk 1:31:30]} 6. e3 {[%clk 1:32:49]} c6 {[%clk 1:31:19]} 7. Qc2  {[%clk 1:32:39]} Nbd7 {[%clk 1:30:55]} 8. Bd3 {[%clk 1:32:52]} Nh5  {[%clk 1:30:55]} 9. Bxe7 {[%clk 1:32:40]} Qxe7 {[%clk 1:31:16]} 10. O-O-O  {[%clk 1:30:04]} g6 {[%clk 1:29:57]} 11. Nf3 {[%clk 1:26:31]} Nb6  {[%clk 1:26:24]} 12. h3 {[%clk 1:26:01]} Be6 {[%clk 1:21:09]} 13. Kb1  {[%clk 1:24:25]} Nf6 {[%clk 1:09:53]} 14. Rc1 {[%clk 1:16:01]} O-O  {[%clk 1:07:14]} 15. h4 {[%clk 1:08:16]} Nbd7 {[%clk 0:48:27]} 16. Ng5  {[%clk 0:53:52]} Kg7 {[%clk 0:45:10]} 17. Ne2 {[%clk 0:51:27]} Rac8  {[%clk 0:41:59]} 18. Nf4 {[%clk 0:37:14]} c5 {[%clk 0:37:28]} 19. h5  {[%clk 0:34:43]} c4 {[%clk 0:31:47]} 20. Bxg6 {[%clk 0:14:14]} hxg6  {[%clk 0:28:07]} 21. Ngxe6+ {[%clk 0:07:49]} fxe6 {[%clk 0:27:46]} 22. h6+  {[%clk 0:07:05]} Kg8 {[%clk 0:27:23]} 23. Qxg6+ {[%clk 0:05:00]} Kh8  {[%clk 0:27:44]} 24. Qg7+ {[%clk 0:04:47]} Qxg7 {[%clk 0:27:56]} 25. hxg7+ Kxg7  {[%clk 0:28:15]} 26. Nxe6+ {[%clk 0:05:44]} Kg6 {[%clk 0:26:19]} 27. Nxf8+  {[%clk 0:06:11]} Rxf8 {[%clk 0:26:43]} 28. f3 {[%clk 0:06:29]} Re8  {[%clk 0:26:01]} 29. Rce1 {[%clk 0:06:32]} Nb8 {[%clk 0:23:42]} 30. Kc2  {[%clk 0:02:43]} Nc6 {[%clk 0:23:56]} 31. Kd2 {[%clk 0:02:43]} b5  {[%clk 0:22:42]} 32. g4 {[%clk 0:01:17]} a5 {[%clk 0:22:23]} 33. a3  {[%clk 0:00:47]} Nd8 {[%clk 0:22:32]} 34. Reg1 {[%clk 0:00:34]} Nf7  {[%clk 0:21:52]} 35. Ke2 {[%clk 0:00:32]} Ng5 {[%clk 0:20:54]} 36. Rh2  {[%clk 0:00:32]} Rc8 {[%clk 0:21:07]} 37. Rc1 {[%clk 0:00:41]} Rb8  {[%clk 0:21:00]} 38. f4 {[%clk 0:00:39]} Nf7 {[%clk 0:18:55]} 39. Kf3  {[%clk 0:00:45]} b4 {[%clk 0:17:18]} 40. axb4 {[%clk 0:31:12]} Rxb4  {[%clk 0:47:41]} 41. Ra1 {[%clk 0:20:07]} a4 {[%clk 0:47:34]} 42. Ra2  {[%clk 0:20:33]} Ne4 {[%clk 0:28:03]} 43. f5+ {[%clk 0:19:03]} Kf6  {[%clk 0:27:27]} 44. Kf4 {[%clk 0:19:10]} Neg5 {[%clk 0:27:24]} 45. Rh5  {[%clk 0:08:26]} Ne4 {[%clk 0:27:39]} 46. Rh2 {[%clk 0:08:44]} Neg5  {[%clk 0:27:58]} 47. Rh5 {[%clk 0:09:06]} Ne4 {[%clk 0:28:19]} 48. Rh1  {[%clk 0:08:24]} Neg5 {[%clk 0:28:21]} 49. Rha1 {[%clk 0:06:57]} Kg7  {[%clk 0:22:02]} 50. Rxa4 {[%clk 0:06:41]} Rxb2 {[%clk 0:22:11]} 51. R4a2  {[%clk 0:06:48]} Rb3 {[%clk 0:22:02]} 52. Ra3 {[%clk 0:05:36]} Rb2  {[%clk 0:22:24]} 53. R3a2 {[%clk 0:06:01]} Rb3 {[%clk 0:22:48]} 54. Ra3  {[%clk 0:00:38]} Rb2 {[%clk 0:23:10]} 55. R3a2 {[%clk 0:00:56]} Ne4 {-error}  1/2-1/2

[Event "SUNWAY"]
[Date "2016.12.16"]
[Round "1.13"]
[White "Matta, Vinay Kumar"]
[Black "Epishin, Vladimir"]
[Result "0-1"]
[WhiteElo "2227"]
[BlackElo "2571"]
[ECO "B06"]
[WhiteFed "IND"]
[BlackFed "RUS"]
[FCGameId "1263166779"]
[TimeControl "5400+30"]

1. e4 {[%clk 1:10:42]} g6 {[%clk 1:28:59]} 2. d4 {[%clk 1:11:00]} Bg7  {[%clk 1:29:26]} 3. Nc3 {[%clk 1:11:15]} b6 {[%clk 1:29:08]} 4. Nf3  {[%clk 1:11:08]} Bb7 {[%clk 1:29:34]} 5. Bc4 {[%clk 1:10:06]} e6  {[%clk 1:20:17]} 6. h4 {[%clk 1:08:47]} h6 {[%clk 1:19:56]} 7. Bf4 d6  {[%clk 1:17:22]} 8. a4 {[%clk 1:06:16]} Ne7 {[%clk 1:16:34]} 9. Qd2  {[%clk 1:05:29]} a6 {[%clk 1:14:17]} 10. O-O {[%clk 0:56:45]} Nd7  {[%clk 1:14:36]} 11. Rfe1 {[%clk 0:53:52]} Nf6 {[%clk 1:11:38]} 12. Bd3  {[%clk 0:49:11]} Kf8 {[%clk 1:08:56]} 13. Ra3 {[%clk 0:42:41]} Kg8  {[%clk 1:08:38]} 14. Nd1 {[%clk 0:40:38]} Kh7 {[%clk 0:53:27]} 15. c4  {[%clk 0:38:43]} Rf8 {[%clk 0:52:27]} 16. b4 {[%clk 0:36:32]} Nh5  {[%clk 0:47:30]} 17. Bh2 {[%clk 0:35:53]} f5 {[%clk 0:47:48]} 18. exf5  {[%clk 0:28:09]} Nxf5 {[%clk 0:47:40]} 19. Bxf5 {[%clk 0:27:39]} exf5  {[%clk 0:46:05]} 20. d5 {[%clk 0:27:04]} b5 {[%clk 0:46:25]} 21. cxb5  {[%clk 0:22:18]} axb5 {[%clk 0:46:41]} 22. a5 {[%clk 0:22:37]} Nf6 23. Nc3  {[%clk 0:15:17]} Re8 {[%clk 0:47:27]} 24. Nxb5 {[%clk 0:11:30]} Rxe1+  {[%clk 0:47:03]} 25. Nxe1 {[%clk 0:10:25]} Bxd5 {[%clk 0:46:40]} 26. Nc3  {[%clk 0:02:56]} Bc4 {[%clk 0:46:12]} 27. Nf3 {[%clk 0:01:52]} Qe8  {[%clk 0:41:08]} 28. Bf4 {[%clk 0:02:01]} Ng4 {[%clk 0:39:22]} 29. Ra1  {[%clk 0:01:34]} Ne5 {[%clk 0:37:16]} 30. Re1 {[%clk 0:01:18]} Nxf3+  {[%clk 0:37:43]} 31. gxf3 {[%clk 0:01:43]} Qf7 {[%clk 0:37:50]} 32. Nd1  {[%clk 0:01:50]} g5 {[%clk 0:33:51]} 33. hxg5 hxg5 34. Bxg5 {[%clk 0:01:59]} Rg8  {[%clk 0:32:49]} 35. f4 {[%clk 0:01:46]} Bf6 {[%clk 0:33:12]} 36. Re3  {[%clk 0:01:35]} Bxg5 {[%clk 0:31:05]} 37. fxg5 {[%clk 0:02:00]} f4  {[%clk 0:31:04]} 38. Rh3+ {[%clk 0:02:15]} Kg6 {[%clk 0:31:32]} 39. Nb2 Qf5  {[%clk 0:31:01]} 40. Qc3 {[%clk 0:31:03]} Qxg5+ {[%clk 0:51:16]} 41. Kh2  {[%clk 0:30:11]} Bf1 {[%clk 0:48:00]} 42. Qc2+ {[%clk 0:30:26]} Kf6  {[%clk 0:46:13]} 43. Qc3+ {[%clk 0:30:32]} Kf7 {[%clk 0:44:48]} 44. Qxc7+  {[%clk 0:27:00]} Ke6 {[%clk 0:45:02]} 0-1

[Event "SUNWAY"]
[Date "2016.12.16"]
[Round "1.14"]
[White "Lopez Martinez, Josep Manuel"]
[Black "Ashwath, R."]
[Result "1-0"]
[WhiteElo "2552"]
[BlackElo "2227"]
[ECO "B36"]
[WhiteFed "ESP"]
[BlackFed "IND"]
[FCGameId "-810416423"]
[TimeControl "5400+30"]

1. e4 {[%clk 1:30:54]} c5 {[%clk 1:30:35]} 2. Nf3 {[%clk 1:30:46]} Nc6  {[%clk 1:30:44]} 3. d4 {[%clk 1:31:01]} cxd4 {[%clk 1:31:03]} 4. Nxd4  {[%clk 1:31:25]} g6 {[%clk 1:31:20]} 5. c4 {[%clk 1:31:32]} Nf6 {[%clk 1:31:11]}  6. Nc3 {[%clk 1:31:29]} Nxd4 {[%clk 1:31:14]} 7. Qxd4 {[%clk 1:31:40]} d6 8. f3  Bg7 {[%clk 1:31:41]} 9. Be3 {[%clk 1:31:04]} O-O {[%clk 1:31:07]} 10. Qd2  {[%clk 1:31:18]} a5 {[%clk 1:30:32]} 11. Na4 {[%clk 1:31:17]} Nd7  {[%clk 1:28:42]} 12. Rd1 {[%clk 1:31:11]} b6 {[%clk 1:27:00]} 13. b3  {[%clk 1:30:56]} Qc7 {[%clk 1:15:47]} 14. Be2 {[%clk 1:29:08]} Nc5  {[%clk 1:15:31]} 15. Nc3 {[%clk 1:28:50]} Be6 {[%clk 1:09:43]} 16. O-O  {[%clk 1:27:57]} Rfc8 {[%clk 1:07:46]} 17. Kh1 {[%clk 1:22:45]} Qd8  {[%clk 1:05:13]} 18. Bd4 Bxd4 {[%clk 0:59:31]} 19. Qxd4 {[%clk 1:21:08]} f6  {[%clk 0:59:17]} 20. f4 {[%clk 1:21:09]} Qd7 {[%clk 0:52:54]} 21. Qe3  {[%clk 1:13:07]} Qe8 {[%clk 0:50:01]} 22. Bf3 {[%clk 1:11:45]} Rab8  {[%clk 0:49:45]} 23. e5 {[%clk 1:11:37]} dxe5 {[%clk 0:49:04]} 24. fxe5  {[%clk 1:11:48]} f5 {[%clk 0:48:39]} 25. h3 {[%clk 1:05:11]} a4 {[%clk 0:37:52]}  26. Nb5 {[%clk 1:02:45]} Bd7 {[%clk 0:25:06]} 27. Nd4 {[%clk 1:02:20]} e6  {[%clk 0:25:03]} 28. Rf2 {[%clk 1:01:23]} Rc7 {[%clk 0:18:00]} 29. Rfd2  {[%clk 1:01:11]} axb3 {[%clk 0:18:00]} 30. axb3 {[%clk 1:01:33]} Ra7  {[%clk 0:16:37]} 31. b4 {[%clk 1:00:35]} Na4 {[%clk 0:16:32]} 32. Qb3  {[%clk 0:47:01]} Rc8 {[%clk 0:11:43]} 33. Nb5 {[%clk 0:43:33]} Bxb5  {[%clk 0:10:48]} 34. cxb5 {[%clk 0:43:57]} Rc3 {[%clk 0:07:36]} 35. Qa2  {[%clk 0:44:10]} Qf7 {[%clk 0:06:19]} 36. Bc6 {[%clk 0:41:02]} Nc5  {[%clk 0:02:53]} 37. bxc5 {[%clk 0:40:15]} Rxa2 {[%clk 0:03:12]} 38. Rxa2  {[%clk 0:40:40]} Rxc5 {[%clk 0:00:48]} 39. Ra8+ {[%clk 0:40:56]} Kg7  {[%clk 0:01:13]} 40. Rd7 {[%clk 1:11:22]} Qxd7 {[%clk 0:30:41]} 41. Bxd7  {[%clk 1:11:35]} Rxe5 {[%clk 0:31:04]} 42. Rb8 {[%clk 1:11:04]} Rd5  {[%clk 0:30:24]} 43. Bc6 {[%clk 1:11:14]} Rd1+ {[%clk 0:30:45]} 44. Kh2  {[%clk 1:11:39]} e5 {[%clk 0:31:12]} 45. Rxb6 {[%clk 1:11:55]} e4  {[%clk 0:31:40]} 46. Rb8 {[%clk 1:12:02]} Kf7 {[%clk 0:31:13]} 47. b6  {[%clk 1:11:57]} e3 {[%clk 0:31:21]} 48. Bf3 {[%clk 1:11:40]} Rb1  {[%clk 0:31:32]} 49. b7 {[%clk 1:11:51]} Rb2 {[%clk 0:31:28]} 50. Rh8  {[%clk 1:11:55]} 1-0

[Event "SUNWAY"]
[Date "2016.12.16"]
[Round "1.15"]
[White "Bifulco, Michel"]
[Black "Sunilduth Lyna, Narayanan"]
[Result "1/2-1/2"]
[WhiteElo "2227"]
[BlackElo "2541"]
[ECO "E47"]
[WhiteFed "ITA"]
[BlackFed "IND"]
[FCGameId "2023118642"]
[TimeControl "5400+30"]

1. d4 Nf6 2. c4 e6 3. Nc3 Bb4 4. e3 O-O 5. Bd3 d6 6. Ne2 c5 7. O-O Nc6 8. Ne4  cxd4 9. exd4 Nxe4 10. Bxe4 d5 11. cxd5 exd5 12. Bf3 Bf5 13. Qb3 Bd6 14. Qxd5 Bd3  15. Qg5 Qc7 16. Qh4 Ne7 17. Bg5 Nf5 18. Qh3 h6 19. Bd2 Rae8 20. Rfc1 Qb6 21. Bg4  Qa6 22. Bxf5 Bxf5 23. Qxf5 Rxe2 24. Bc3 Rfe8 25. g3 Qc4 26. Rd1 b5 27. Qd3 Qd5  28. Re1 Rxe1+ 29. Rxe1 Rxe1+ 30. Bxe1 b4 31. b3 a5 32. Bd2 h5 33. h4 Be7 34. Be3  1/2-1/2

[Event "SUNWAY"]
[Date "2016.12.16"]
[Round "1.16"]
[White "Burmakin, Vladimir"]
[Black "Mahalakshmi, M"]
[Result "1-0"]
[WhiteElo "2535"]
[BlackElo "2225"]
[ECO "A06"]
[WhiteFed "RUS"]
[BlackFed "IND"]
[FCGameId "-676028375"]
[TimeControl "5400+30"]

1. Nf3 {[%clk 1:30:56]} d5 {[%clk 1:30:54]} 2. g3 {[%clk 1:31:22]} c6  {[%clk 1:31:16]} 3. Bg2 {[%clk 1:31:43]} Bg4 {[%clk 1:31:28]} 4. c4  {[%clk 1:31:45]} e6 {[%clk 1:30:37]} 5. cxd5 {[%clk 1:32:01]} exd5  {[%clk 1:30:18]} 6. Qb3 {[%clk 1:32:10]} Qb6 {[%clk 1:29:24]} 7. Qc2  {[%clk 1:32:33]} Nf6 {[%clk 1:27:56]} 8. O-O {[%clk 1:32:46]} Bd6  {[%clk 1:27:05]} 9. Nc3 {[%clk 1:31:47]} O-O {[%clk 1:26:37]} 10. d3  {[%clk 1:32:07]} Nbd7 {[%clk 1:17:06]} 11. e4 {[%clk 1:31:29]} Rfe8  {[%clk 1:14:14]} 12. Be3 {[%clk 1:25:54]} Qc7 {[%clk 1:13:04]} 13. Nd4  {[%clk 1:17:26]} dxe4 {[%clk 1:00:26]} 14. dxe4 {[%clk 1:17:36]} Nb6  {[%clk 0:57:18]} 15. f4 {[%clk 0:55:32]} Rad8 {[%clk 0:50:41]} 16. Kh1  {[%clk 0:49:09]} Qc8 {[%clk 0:42:48]} 17. Nb3 {[%clk 0:47:31]} Bb8  {[%clk 0:31:33]} 18. Bd4 {[%clk 0:45:45]} Be6 {[%clk 0:24:56]} 19. Rad1  {[%clk 0:42:53]} Nc4 {[%clk 0:18:41]} 20. Rfe1 {[%clk 0:36:28]} Bg4  {[%clk 0:14:55]} 21. Rc1 {[%clk 0:36:44]} b5 {[%clk 0:09:50]} 22. Bg1  {[%clk 0:29:18]} Bh3 {[%clk 0:09:47]} 23. Nd4 {[%clk 0:27:35]} Bxg2+  {[%clk 0:08:53]} 24. Qxg2 {[%clk 0:27:53]} a6 {[%clk 0:07:13]} 25. e5  {[%clk 0:19:51]} c5 {[%clk 0:06:07]} 26. Nf3 {[%clk 0:17:54]} Nd7  {[%clk 0:05:04]} 27. Ne4 {[%clk 0:16:17]} Re6 {[%clk 0:01:30]} 28. b3  {[%clk 0:15:45]} Na5 {[%clk 0:01:34]} 29. Nxc5 {[%clk 0:15:27]} Nxc5  {[%clk 0:01:47]} 30. Rxc5 {[%clk 0:15:22]} Rc6 {[%clk 0:01:44]} 31. Rxc6  {[%clk 0:10:28]} Nxc6 {[%clk 0:01:47]} 32. Ng5 {[%clk 0:10:09]} Ne7  {[%clk 0:00:45]} 33. Qe4 {[%clk 0:09:49]} h6 {[%clk 0:00:43]} 34. Nf3  {[%clk 0:09:43]} Qc3 {[%clk 0:00:33]} 35. Bd4 {[%clk 0:08:22]} Qa5  {[%clk 0:00:52]} 36. Bc5 {[%clk 0:07:50]} Nc8 {[%clk 0:00:40]} 37. e6  {[%clk 0:04:47]} fxe6 {[%clk 0:00:59]} 38. Qxe6+ {[%clk 0:05:09]} Kh7  {[%clk 0:01:02]} 39. b4 {[%clk 0:04:05]} Qa3 {[%clk 0:00:59]} 40. Qb3  {[%clk 0:33:14]} Qxb3 {[%clk 0:31:06]} 41. axb3 {[%clk 0:33:43]} Bc7  {[%clk 0:27:49]} 42. Re6 {[%clk 0:26:21]} Bd6 {[%clk 0:22:31]} 43. Ne5  {[%clk 0:25:22]} Bxc5 {[%clk 0:21:45]} 44. bxc5 {[%clk 0:25:41]} a5  {[%clk 0:22:10]} 45. Ra6 {[%clk 0:23:46]} Rd1+ {[%clk 0:21:50]} 46. Kg2  {[%clk 0:24:14]} Ra1 {[%clk 0:22:07]} 47. b4 {[%clk 0:21:50]} a4  {[%clk 0:21:55]} 48. Nc6 {[%clk 0:21:44]} Re1 {[%clk 0:19:00]} 49. Ra5  {[%clk 0:20:33]} Ne7 {[%clk 0:17:04]} 50. Nxe7 {[%clk 0:19:52]} Rxe7  {[%clk 0:17:32]} 51. Kf3 {[%clk 0:20:10]} Kg6 {[%clk 0:12:38]} 52. Rxb5  {[%clk 0:10:46]} Ra7 {[%clk 0:13:02]} 53. Rb6+ {[%clk 0:11:07]} Kf7  {[%clk 0:08:02]} 54. c6 {[%clk 0:07:26]} Ke6 {[%clk 0:06:49]} 55. Rb7  {[%clk 0:07:33]} Ra6 {[%clk 0:05:34]} 56. b5 {[%clk 0:07:47]} a3  {[%clk 0:04:33]} 57. f5+ {[%clk 0:05:23]} Kf6 {[%clk 0:04:05]} 58. c7  {[%clk 0:05:47]} a2 {[%clk 0:02:05]} 59. c8=Q {[%clk 0:06:09]} a1=Q  {[%clk 0:01:45]} 60. Qf8+ {[%clk 0:04:43]} Ke5 {[%clk 0:02:03]} 61. Qe7+  {-error} 1-0

[Event "SUNWAY"]
[Date "2016.12.16"]
[Round "1.17"]
[White "Prithu Gupta"]
[Black "Shyam, Sundar M."]
[Result "0-1"]
[WhiteElo "2219"]
[BlackElo "2532"]
[ECO "C54"]
[WhiteFed "IND"]
[BlackFed "IND"]
[FCGameId "1665017690"]
[TimeControl "5400+30"]

1. e4 e5 2. Nf3 Nc6 3. Bc4 Bc5 4. c3 Nf6 5. d3 O-O 6. O-O d5 7. exd5 Nxd5 8. b4  Be7 9. b5 Na5 10. Bxd5 Qxd5 11. c4 Qd8 12. Bd2 c5 13. Qe1 b6 14. Bxa5 bxa5 15.  Qe4 Rb8 16. Nc3 Bb7 17. Qe2 f6 18. Rad1 Qc7 19. Rfe1 Bd6 20. Ne4 Rbd8 21. a4 Be7  22. Nc3 Qd7 23. h3 Rfe8 24. Qe3 Bf8 25. Ne4 Qc8 26. Ned2 Qc7 27. Nb3 Rd7 28.  Nfd2 f5 29. f3 Red8 30. Qxe5 Qxe5 31. Rxe5 Rxd3 32. Ree1 Bc8 33. Kf2 f4 34. Ke2  Re3+ 35. Kf2 Red3 36. Ke2 Bf5 37. Nxa5 Re3+ 38. Kf2 Bc2 39. Nc6 Rd7 40. Nf1 Rxd1  41. Rxd1 Bxd1 42. Nxe3 fxe3+ 43. Kxe3 Bxa4 44. Nxa7 Kf7 45. Kd2 g6 46. Nc8 Bg7  47. Nb6 Bb3 48. Nd7 Ke7 49. Nxc5 Bxc4 50. b6 Be5 51. b7 Bd5 52. Ke3 g5 53. Kd3  h6 54. Ke3 Bc6 55. Kd3 Kd8 56. Kc4 Kc7 57. Kd3 Bd6 58. Ne6+ Kd7 59. Nc5+ Kc7 60.  Ne6+ Kb8 61. Nd8 Bd5 62. Kd4 Ba2 63. Ke4 Bc7 64. Nc6+ Kxb7 65. Ne7 Bb1+ 66. Kd5  Ba2+ 67. Ke4 Bd8 68. Nf5 h5 69. Ng7 h4 70. f4 Kc6 71. fxg5 Bxg5 72. Kf5 Bd8 73.  Ne6 Bxe6+ 74. Kxe6 Bc7 75. Kf5 Kd5 76. Kg4 Bg3 77. Kf3 Kd4 78. Ke2 Ke4 79. Kf1  Ke3 80. Kg1 Ke2 81. Kh1 Bf2 82. Kh2 Kf1 83. Kh1 Bg1 0-1